fUSD/lending_fUSD_20251230
["ID","MTS","AMOUNT","RATE_DAILY","PERIOD"]
[400056766,1767055846032,-162.88745,0.00018,2]
[400056768,1767055846042,-516.88,0.00018014,2]
[400056770,1767055846051,-168.0,0.00018061,2]
[400056772,1767055846061,-1000.0,0.00018082,2]
[400056774,1767055846071,-1000.0,0.0001876,2]
[400056776,1767055846081,-153.44,0.000188,2]
[400056778,1767055846091,-153.44,0.000188,2]
[400056780,1767055846101,-167.51,0.00018824,2]
[400056782,1767055846110,-151.0,0.00019178,2]
[400056785,1767055846120,-3021.08369,0.00019178,2]
[400056787,1767055846130,-967.50026354,0.00019178,2]
[400056789,1767055846145,-2053.58342646,0.00019178,2]
[400056791,1767055846154,-2946.41657354,0.00019178,2]
[400056794,1767055846166,-74.66711646,0.00019178,2]
[400056796,1767055846176,-843.29075116,0.00019178,2]
[400056799,1767055846198,-2177.79293884,0.00019178,2]
[400056801,1767055846207,-3021.08369,0.00019178,2]
[400056803,1767055846216,-1996.41209146,0.00019178,2]
[400058129,1767056410695,-375.06010937,0.00015416,2]
[400058130,1767056410721,-402.55275709,0.0001546,2]
[400058131,1767056410746,-273.70739794,0.00015503,2]
[400058132,1767056410770,-2500.0,0.00015516,2]
[400058133,1767056410796,-2500.0,0.00016164,2]
[400058134,1767056410821,-489.188927,0.00016246,2]
[400058135,1767056410851,-151.0,0.00016328,2]
[400058136,1767056410875,-151.0,0.00016328,2]
[400058137,1767056410900,-410.2886,0.000166,2]
[400058138,1767056410925,-300.0,0.00016623,2]
[400058139,1767056410949,-300.0,0.00016623,2]
[400058140,1767056410974,-3629.81365766,0.00016624,2]
[400058141,1767056410998,-275.46962926,0.00016624,2]
[400058142,1767056411029,-1000.40181033,0.00016624,2]
[400058143,1767056411058,-500.0,0.0001669,2]
[400058144,1767056411083,-500.0,0.0001669,2]
[400058145,1767056411119,-151.0,0.0001669,2]
[400058146,1767056411145,-15711.06,0.0001669,2]
[400058147,1767056411168,-15711.06,0.0001669,2]
[400058148,1767056411192,-164.62,0.0001669,2]
[400058149,1767056411218,-150.0,0.00016698,2]
[400058150,1767056411248,-500.0,0.00016699,2]
[400058151,1767056411276,-500.0,0.00016699,2]
[400058152,1767056411306,-500.0,0.00016699,2]
[400058153,1767056411339,-500.0,0.00016699,2]
[400058154,1767056411371,-500.0,0.00016699,2]
[400058155,1767056411401,-500.0,0.00016699,2]
[400058156,1767056411432,-500.0,0.00016699,2]
[400058157,1767056411462,-500.0,0.00016699,2]
[400058158,1767056411491,-500.0,0.00016699,2]
[400058159,1767056411520,-500.0,0.00016699,2]
[400058160,1767056411550,-500.0,0.00016699,2]
[400058161,1767056411579,-500.0,0.00016699,2]
[400058162,1767056411609,-500.0,0.00016699,2]
[400058163,1767056411638,-396.03121931,0.00016699,2]
[400058164,1767056411668,-500.0,0.00016699,2]
[400058165,1767056411697,-500.0,0.00016699,2]
[400058166,1767056411725,-500.0,0.00016699,2]
[400058167,1767056411754,-500.0,0.00016699,2]
[400058168,1767056411782,-500.0,0.00016699,2]
[400058169,1767056411816,-500.0,0.00016699,2]
[400058171,1767056412125,-500.0,0.00016699,2]
[400058172,1767056412155,-500.0,0.00016699,2]
[400058173,1767056412184,-500.0,0.00016699,2]
[400058174,1767056412214,-450.0,0.00016699,2]
[400058175,1767056412242,-500.0,0.00016699,2]
[400058176,1767056412273,-500.0,0.00016699,2]
[400058177,1767056412302,-500.0,0.00016699,2]
[400058178,1767056412330,-500.0,0.00016699,2]
[400058179,1767056412359,-500.0,0.00016699,2]
[400058180,1767056412389,-500.0,0.00016699,2]
[400058181,1767056412416,-500.0,0.00016699,2]
[400058182,1767056412443,-292.7342488,0.00016699,2]
[400058183,1767056412468,-500.0,0.00016699,2]
[400058184,1767056412492,-257.36957998,0.00016699,2]
[400058185,1767056412521,-300.0,0.00016699,2]
[400058186,1767056412556,-937657.64206326,0.000167,2]
[400058191,1767056433824,-151.0,0.00016481,2]
[400058192,1767056433852,-151.0,0.00016481,2]
[400058193,1767056433877,-151.0,0.00016505,2]
[400058194,1767056433902,-151.0,0.00016505,2]
[400058195,1767056433938,-25179.72583674,0.000167,2]
[400058196,1767056433963,-214.15037368,0.00016858,2]
[400058197,1767056434257,-2500.0,0.00016958,2]
[400058198,1767056434285,-300.0,0.00016999,2]
[400058199,1767056434310,-300.0,0.00016999,2]
[400058200,1767056434337,-666.0,0.00016999,2]
[400058201,1767056434360,-2000.0,0.00017,2]
[400058203,1767056442327,162.76,0.00030136,120]
[400058247,1767056749137,-271.13,0.00013699,2]
[400058248,1767056749158,-185.58755146,0.00013699,2]
[400058249,1767056749179,-300.0,0.00015067,2]
[400058250,1767056749202,-300.0,0.00015067,2]
[400058251,1767056749222,-189.99827094,0.00015068,2]
[400058252,1767056749243,-2500.0,0.00015068,2]
[400058253,1767056749265,-250.0,0.00015068,2]
[400058254,1767056749285,-195.0,0.00015068,2]
[400058255,1767056749306,-193.0,0.00015068,2]
[400058256,1767056749329,-330.0,0.00016489,2]
[400058257,1767056749360,-972.66428512,0.00016599,2]
[400058261,1767056758096,-151.0,0.00016525,2]
[400058262,1767056758119,-151.0,0.00016525,2]
[400058263,1767056758146,-414.77331488,0.00016599,2]
[400058264,1767056758172,-171.6904,0.000166,2]
[400058265,1767056758193,-1037.7679818,0.00016701,2]
[400058266,1767056758213,-19264.7097165,0.00016701,2]
[400058267,1767056758235,-168.0,0.0001687,2]
[400058268,1767056758255,-194.17177882,0.00017,2]
[400058269,1767056758278,-168.0,0.0001714,2]
[400058270,1767056758299,-10000.0,0.00017898,2]
[400058271,1767056758320,-19264.7097165,0.0001891,2]
[400058272,1767056758341,-1037.7679818,0.00018922,2]
[400058273,1767056758362,-559.06,0.00019,2]
[400058274,1767056758382,-200.0,0.00019178,2]
[400058275,1767056758404,-157.07838369,0.0001926,2]
[400058276,1767056758425,-1000.0,0.00019438,2]
[400058277,1767056758446,-150.49853112,0.0001955,5]
[400058278,1767056758466,-999.0,0.00019653,3]
[400058279,1767056758487,-297.51133122,0.00019831,2]
[400058280,1767056758509,-678.18239246,0.00019981,2]
[400058288,1767056831135,-151.0,0.00016889,2]
[400058289,1767056831157,-151.0,0.00016889,2]
[400058290,1767056831176,-151.0,0.00016923,2]
[400058291,1767056831196,-151.0,0.00016923,2]
[400058292,1767056831216,-151.0,0.00016959,2]
[400058293,1767056831235,-151.0,0.00016959,2]
[400058294,1767056831255,-151.0,0.00017002,2]
[400058295,1767056831275,-151.0,0.00017002,2]
[400058296,1767056831295,-194.17177881,0.00019981,2]
[400058297,1767056831315,-151.0,0.00019981,2]
[400058298,1767056831336,-578.81760754,0.00019981,2]
[400058299,1767056831357,-516.88,0.00020015,2]
[400058300,1767056831377,-1000.0,0.00020116,2]
[400058301,1767056831398,-271.13,0.00020187,2]
[400058302,1767056831418,-1000.0,0.00020223,2]
[400058303,1767056831439,-334.74135924,0.00020512,2]
[400058304,1767056831463,-2000.0,0.000207,2]
[400058305,1767056831484,-1000.0,0.00020795,2]
[400058306,1767056831505,-1000.0,0.00021,6]
[400058307,1767056831526,-19264.7097165,0.00021118,2]
[400058308,1767056831547,-1037.7679818,0.00021143,2]
[400058309,1767056831568,-5111.91,0.00021163,2]
[400058310,1767056831590,-6190.63,0.00021822,2]
[400058311,1767056831612,-5000.0,0.00021918,2]
[400058312,1767056831631,-1000.0,0.00022,6]
[400058313,1767056831653,-228.10272504,0.00022017,2]
[400058314,1767056834136,-288.77727496,0.00022017,2]
[400058315,1767056834163,-433.869,0.00022384,2]
[400058316,1767056834182,-6539.0,0.00022384,2]
[400058317,1767056834204,-576.965,0.00022384,2]
[400058318,1767056834228,-1205.818,0.00022384,2]
[400058319,1767056834249,-8665.12,0.00022562,2]
[400058320,1767056834274,-3240.0,0.00022598,2]
[400058321,1767056834297,-1852.42,0.00022708,2]
[400058322,1767056834320,-1000.0,0.00022751,2]
[400058323,1767056834346,-1500.0,0.00022863,2]
[400058324,1767056834368,-2439.07184729,0.00023327,2]
[400058327,1767056841092,-151.0,0.00016856,2]
[400058328,1767056841115,-151.0,0.00016856,2]
[400058329,1767056841136,-16825.63786921,0.00023327,2]
[400058330,1767056841158,-1037.7679818,0.00023364,2]
[400058331,1767056841178,-200.0,0.00023864,2]
[400058332,1767056841198,-3600.0,0.00024,2]
[400058333,1767056841217,-320.3860841,0.00024,2]
[400058334,1767056841239,-516.88,0.00024018,2]
[400058335,1767056841259,-4551.08452848,0.00024364,2]
[400058336,1767056841278,-2000.0,0.000244,2]
[400058337,1767056841297,-150.0,0.00024464,2]
[400058338,1767056841318,-1000.0,0.00024658,2]
[400058339,1767056841337,-2448.28440679,0.00024682,2]
[400058340,1767056842082,-2361.71559321,0.00024682,2]
[400058341,1767056842103,-3461.0,0.00024682,2]
[400058342,1767056842124,-171.76,0.00025214,2]
[400058343,1767056842143,-1000.0,0.00025279,2]
[400058344,1767056842164,-1294.935,0.00025384,2]
[400058345,1767056842183,-564.0,0.00025384,2]
[400058346,1767056842201,-849.0,0.000256,2]
[400058347,1767056842231,-976.0,0.000256,2]
[400058348,1767056842255,-305.0,0.000256,2]
[400058349,1767056842278,-4551.08452845,0.00026408,2]
[400058350,1767056842299,-217.56828645,0.00026494,7]
[400058351,1767056842320,-271.13,0.00026676,2]
[400058352,1767056842340,-153.44,0.00027387,2]
[400058353,1767056842360,-204.95,0.00027397,14]
[400058354,1767056842380,-160.85,0.00027397,30]
[400058355,1767056842400,-500.0,0.00027397,20]
[400058356,1767056842419,-153.0,0.00027397,2]
[400058357,1767056842439,-153.0,0.00027397,2]
[400058358,1767056842458,-153.0,0.00027397,2]
[400058359,1767056842479,-153.0,0.00027397,2]
[400058360,1767056842499,-153.0,0.00027397,2]
[400058361,1767056842519,-153.0,0.00027397,2]
[400058362,1767056842540,-153.0,0.00027397,2]
[400058363,1767056842560,-153.0,0.00027397,2]
[400058364,1767056842580,-153.0,0.00027397,2]
[400058365,1767056842601,-153.0,0.00027397,2]
[400058366,1767056842627,-153.0,0.00027397,2]
[400058367,1767056842648,-153.0,0.00027397,2]
[400058368,1767056842669,-164.0,0.00027397,2]
[400058369,1767056842691,-153.0,0.00027397,2]
[400058370,1767056842712,-153.0,0.00027397,2]
[400058371,1767056842733,-153.0,0.00027397,2]
[400058372,1767056842753,-153.0,0.00027397,2]
[400058373,1767056842773,-153.0,0.00027397,2]
[400058374,1767056842794,-235.0,0.00027397,2]
[400058375,1767056842814,-150.0,0.00027464,2]
[400058376,1767056842834,-500.0,0.00027644,2]
[400058377,1767056842855,-204.95,0.00027671,14]
[400058378,1767056842876,-1000.0,0.00027807,2]
[400058379,1767056842897,-204.95,0.00027945,14]
[400058380,1767056842919,-2000.0,0.000281,2]
[400058381,1767056842940,-204.95,0.00028219,14]
[400058382,1767056842960,-171.76,0.00028365,2]
[400058383,1767056842980,-564.0,0.00028384,2]
[400058384,1767056843006,-4551.08452845,0.00028451,2]
[400058385,1767056843027,-204.95,0.00028493,14]
[400058386,1767056843048,-161.3860028,0.0003,5]
[400058387,1767056843068,-200.0,0.0003013,2]
[400058388,1767056843092,-7040.59966886,0.0003013,5]
[400058389,1767056843115,-455.4,0.00030137,2]
[400058390,1767056843136,-402.6,0.00030137,6]
[400058391,1767056843160,-167.00255864,0.00030137,2]
[400058392,1767056843179,-1000.0,0.00030335,2]
[400058393,1767056843202,-4551.08452845,0.00030495,2]
[400058394,1767056843223,-157.07838369,0.00031018,2]
[400058395,1767056843245,-171.76,0.00031517,2]
[400058396,1767056843266,-160.85,0.00031723,30]
[400058397,1767056843287,-1699.0,0.000318,2]
[400058398,1767056843307,-347.14482896,0.0003216,2]
[400058399,1767056843329,-4551.08452845,0.00032538,2]
[400058400,1767056843350,-200.0,0.00032604,2]
[400058401,1767056843371,-207.4,0.00032604,2]
[400058402,1767056843396,-283.30474741,0.00032604,2]
[400058403,1767056843418,-322.6107,0.00032604,2]
[400058404,1767056843439,-151.0,0.00032604,2]
[400058405,1767056843461,-500.0,0.00032604,2]
[400058406,1767056843482,-500.0,0.00032604,2]
[400058407,1767056843503,-500.0,0.00032604,2]
[400058408,1767056843525,-620.0,0.00032604,2]
[400058409,1767056843547,-533.88981491,0.00032604,2]
[400058410,1767056843568,-250.0,0.00032604,2]
[400058411,1767056843589,-500.0,0.00032604,2]
[400058412,1767056843615,-500.0,0.00032604,2]
[400058413,1767056843636,-250.0,0.00032604,2]
[400058414,1767056843657,-250.0,0.00032604,2]
[400058415,1767056843678,-5111.91,0.00032944,2]
[400058416,1767056843698,-1403.56,0.0003299,2]
[400058417,1767056843719,-500.0,0.00032999,30]
[400058418,1767056843740,-16005.48341249,0.00033,13]
[400058419,1767056843760,-45480.95463875,0.00033,2]
[400058420,1767056843780,-1988.96156541,0.00033,2]
[400058421,1767056843799,-1907.27647102,0.00033,2]
[400058422,1767056843823,-152.85154455,0.00033,2]
[400058423,1767056843843,-12712.42810976,0.00033,13]
[400058424,1767056843864,-553.64373807,0.00033152,2]
[400058425,1767056843884,-271.13,0.00033165,2]
[400058426,1767056843906,-574.12855637,0.000337,2]
[400058427,1767056843927,-334.5472959,0.00033973,2]
[400058428,1767056843948,-286.16073191,0.00033973,2]
[400058429,1767056843969,-595.37131296,0.00034248,2]
[400058430,1767056843991,-4551.08452845,0.00034582,2]
[400058431,1767056844011,-171.76,0.00034669,2]
[400058432,1767056844036,-617.40005154,0.00034796,2]
[400058433,1767056844056,-197.88481426,0.00034876,2]
[400058434,1767056844081,-197.88481426,0.00034876,2]
[400058435,1767056844104,-365.12785595,0.00035,30]
[400058436,1767056844126,-1523.135,0.00035142,41]
[400058437,1767056844148,-260.52700895,0.00035342,2]
[400058438,1767056844170,-640.24385345,0.00035344,2]
[400058439,1767056844190,-1699.0,0.000355,2]
[400058440,1767056844210,-189.03837,0.00035888,30]
[400058441,1767056844230,-663.93287602,0.00035892,2]
[400058442,1767056844249,-3709.0,0.00036,5]
[400058443,1767056844270,-1091.19,0.00036,30]
[400058444,1767056844290,-659.15029771,0.00036,2]
[400058445,1767056844310,-160.85,0.00036049,30]
[400058446,1767056844331,-189.03837,0.00036088,30]
[400058447,1767056844352,-189.03837,0.00036288,30]
[400058448,1767056844378,-498.0,0.00036411,2]
[400058449,1767056844400,-688.49839244,0.0003644,2]
[400058450,1767056844422,-189.03837,0.00036488,30]
[400058451,1767056844443,-4551.08452845,0.00036625,2]
[400058452,1767056844463,-189.03837,0.00036688,30]
[400058453,1767056844483,-1091.19,0.0003672,30]
[400058454,1767056844503,-189.03837,0.00036888,30]
[400058455,1767056844526,-630.1279,0.00036888,7]
[400058456,1767056844546,-159.92,0.00036905,14]
[400058457,1767056844567,-713.97283296,0.00036988,2]
[400058458,1767056844587,-189.03837,0.00037088,30]
[400058459,1767056844608,-189.03837,0.00037288,30]
[400058460,1767056844853,-1000.0,0.000373,7]
[400058461,1767056844874,-189.03837,0.00037488,30]
[400058462,1767056844896,-740.38982778,0.00037536,2]
[400058463,1767056844917,-189.03837,0.00037688,30]
[400058464,1767056844936,-288.95,0.00037766,14]
[400058465,1767056844957,-171.76,0.0003782,2]
[400058466,1767056844978,-189.03837,0.00037888,30]
[400058467,1767056844998,-154.0,0.00038,120]
[400058468,1767056845019,-216.26765932,0.00038084,2]
[400058469,1767056845040,-189.03837,0.00038088,30]
[400058470,1767056845060,-189.03837,0.00038288,30]
[400058471,1767056845084,-683.1,0.00038356,35]
[400058472,1767056845105,-603.9,0.00038356,47]
[400058473,1767056845125,-250.50383797,0.00038356,19]
[400058474,1767056845148,-189.03837,0.00038488,30]
[400058475,1767056845167,-1048.95,0.00038564,2]
[400058476,1767056845187,-300.0,0.00038585,2]
[400058477,1767056845207,-300.0,0.00038585,2]
[400058478,1767056845227,-368.11189296,0.00038585,2]
[400058479,1767056845246,-300.0,0.00038585,2]
[400058480,1767056845266,-428.92777677,0.00038585,2]
[400058481,1767056845284,-602.56040531,0.00038585,2]
[400058482,1767056845304,-300.0,0.00038585,2]
[400058483,1767056845324,-644.49445733,0.00038585,2]
[400058484,1767056845345,-300.0,0.00038585,2]
[400058485,1767056845365,-601.74887126,0.00038585,2]
[400058486,1767056845385,-300.0,0.00038585,2]
[400058487,1767056845404,-300.0,0.00038585,2]
[400058488,1767056845424,-506.94193862,0.00038585,2]
[400058489,1767056845444,-300.0,0.00038585,2]
[400058490,1767056845464,-300.0,0.00038585,2]
[400058491,1767056845484,-362.62470523,0.00038585,2]
[400058492,1767056845506,-300.0,0.00038585,2]
[400058493,1767056845526,-4551.08452845,0.00038669,2]
[400058494,1767056845547,-189.03837,0.00038688,30]
[400058495,1767056845568,-189.03837,0.00039088,30]
[400058496,1767056845588,-189.03837,0.00039288,30]
[400058497,1767056845610,-189.03837,0.00039488,30]
[400058498,1767056845631,-3266.83229184,0.00039559,2]
[400058499,1767056845653,-271.13,0.00039654,2]
[400058500,1767056845674,-461.73123326,0.00039659,7]
[400058501,1767056845695,-189.03837,0.00039688,30]
[400058502,1767056845716,-1005.0,0.000398,90]
[400058503,1767056845737,-189.03837,0.00039888,30]
[400058504,1767056845757,-155.53651584,0.000399,120]
[400058505,1767056845778,-3266.83229183,0.00039914,15]
[400058506,1767056845799,-151.0,0.00039997,14]
[400058507,1767056845825,-500.0,0.00039999,31]
[400058508,1767056845850,-500.0,0.00039999,31]
[400058509,1767056845875,-500.0,0.00039999,31]
[400058510,1767056845901,-534.60312193,0.00039999,31]
[400058511,1767056845920,-963.3,0.0004,2]
[400058512,1767056845942,-156.0,0.0004,120]
[400058513,1767056845963,-222.63834331,0.0004,2]
[400058514,1767056845984,-152.0,0.0004,120]
[400058515,1767056846004,-2000.0,0.0004,60]
[400058516,1767056846025,-80270.7250315,0.0004,30]
[400058549,1767057031892,-151.0,0.00023736,2]
[400058550,1767057031902,-151.0,0.00023736,2]
[400058551,1767057031912,-500.0,0.00032604,2]
[400058552,1767057031922,-500.0,0.00032604,2]
[400058553,1767057031932,-33.32086676,0.00032604,2]
[400058554,1767057031944,-966.67913324,0.00032604,2]
[400058555,1767057031954,-500.0,0.00032999,120]
[400058556,1767057031963,-423.51648446,0.00035141,30]
[400058557,1767057031975,-576.48351554,0.00035141,30]
[400058558,1767057031984,-773.99264083,0.00035999,5]
[400058559,1767057032132,-226.00735917,0.00035999,5]
[400058561,1767057032144,-1000.0,0.00038355,30]
[400058563,1767057032156,-1000.0,0.00038355,30]
[400058565,1767057032170,-1000.0,0.00038355,19]
[400058567,1767057032182,-500.0,0.000393,5]
[400058568,1767057032196,-175.89091811,0.000393,5]
[400058569,1767057032208,-1000.0,0.00039658,7]
[400058571,1767057032219,-1000.0,0.00039799,30]
[400058573,1767057032240,-1000.0,0.00039913,15]
[400058574,1767057032258,-910.21690569,0.00039988,15]
[400058575,1767057032270,-1000.0,0.00039996,14]
[400058576,1767057032282,-1000.0,0.00039998,30]
[400058577,1767057032292,-1000.0,0.00039999,2]
[400058579,1767057032304,-1000.0,0.00039999,30]
[400058581,1767057032315,-1000.0,0.00039999,30]
[400058584,1767057032328,-1000.0,0.00039999,30]
[400058585,1767057032341,-51511.89499395,0.0004,30]
[400058586,1767057032508,-371.86527032,0.0004,30]
[400058587,1767057032520,-3264.64966177,0.0004,30]
[400058588,1767057032534,-12968.85226141,0.0004,30]
[400058589,1767057032555,-1743.16,0.0004,30]
[400058590,1767057032570,-255.51004428,0.0004,30]
[400058591,1767057032583,-1213.60369838,0.0004,30]
[400058592,1767057032598,-21878.31259247,0.0004,30]
[400058593,1767057032610,-1399.77998509,0.0004,30]
[400058594,1767057037973,-151.0,0.00023577,2]
[400058595,1767057037984,-151.0,0.00023577,2]
[400058596,1767057037995,-123510.97428267,0.0004,30]
[400058597,1767057038008,-189.03837,0.00040088,30]
[400058598,1767057038018,-189.03837,0.00040288,30]
[400058599,1767057038030,-910.21690569,0.00040295,15]
[400058600,1767057038042,-554.77,0.00040373,2]
[400058601,1767057038053,-160.85,0.00040375,120]
[400058602,1767057038065,-189.03837,0.00040488,30]
[400058603,1767057038077,-1351.0,0.00040558,6]
[400058604,1767057038092,-200.0,0.00040574,2]
[400058605,1767057038107,-200.0,0.00040574,2]
[400058606,1767057038119,-200.0,0.00040574,2]
[400058607,1767057038132,-200.0,0.00040574,2]
[400058608,1767057038144,-200.0,0.00040574,2]
[400058609,1767057038161,-200.0,0.00040574,2]
[400058610,1767057038173,-200.0,0.00040574,2]
[400058611,1767057038185,-200.0,0.00040574,2]
[400058612,1767057038198,-200.0,0.00040574,2]
[400058614,1767057038211,-200.0,0.00040574,2]
[400058615,1767057038223,-200.0,0.00040574,2]
[400058616,1767057038234,-200.0,0.00040574,2]
[400058617,1767057038245,-200.0,0.00040574,2]
[400058619,1767057038256,-200.0,0.00040574,2]
[400058621,1767057038266,-200.0,0.00040574,2]
[400058623,1767057038276,-200.0,0.00040574,2]
[400058625,1767057038286,-200.0,0.00040574,2]
[400058627,1767057038296,-200.0,0.00040574,2]
[400058629,1767057038306,-200.0,0.00040574,2]
[400058632,1767057038317,-200.0,0.00040574,2]
[400058634,1767057038327,-200.0,0.00040574,2]
[400058636,1767057038338,-200.0,0.00040574,2]
[400058638,1767057038347,-200.0,0.00040574,2]
[400058640,1767057038359,-200.0,0.00040574,2]
[400058643,1767057038370,-200.0,0.00040574,2]
[400058645,1767057038381,-200.0,0.00040574,2]
[400058647,1767057038393,-200.0,0.00040574,2]
[400058649,1767057038404,-200.0,0.00040574,2]
[400058652,1767057038416,-200.0,0.00040574,2]
[400058654,1767057038427,-200.0,0.00040574,2]
[400058656,1767057038437,-200.0,0.00040574,2]
[400058658,1767057038447,-200.0,0.00040574,2]
[400058660,1767057038457,-200.0,0.00040574,2]
[400058662,1767057038467,-200.0,0.00040574,2]
[400058664,1767057038478,-200.0,0.00040574,2]
[400058666,1767057038488,-200.0,0.00040574,2]
[400058669,1767057038498,-156.0,0.00040574,2]
[400058671,1767057038512,-156.0,0.000406,120]
[400058673,1767057038523,-152.0,0.000406,120]
[400058675,1767057038533,-910.21690569,0.00040602,15]
[400058677,1767057038544,-189.03837,0.00040688,30]
[400058679,1767057038555,-189.03837,0.00040888,30]
[400058682,1767057038567,-910.21690569,0.00040909,15]
[400058684,1767057038579,-1320.08,0.00040932,2]
[400058686,1767057038591,-875.35158403,0.00040995,28]
[400058688,1767057038602,-5000.0,0.00040995,120]
[400058691,1767057038614,-222.0,0.00041,30]
[400058693,1767057038626,-952.31370534,0.00041,2]
[400058695,1767057038637,-199.999999,0.00041,2]
[400058697,1767057038648,-10830.13981171,0.00041,23]
[400058699,1767057038658,-154.0,0.00041,120]
[400058701,1767057038670,-700.0,0.00041,3]
[400058704,1767057038680,-2613.4658335,0.00041,15]
[400058706,1767057038690,-561.42,0.00041085,2]
[400058708,1767057038701,-189.03837,0.00041088,30]
[400058710,1767057038711,-500.0,0.00041094,30]
[400058712,1767057038722,-500.0,0.00041094,120]
[400058714,1767057038733,-1000.0,0.00041095,2]
[400058716,1767057038744,-1000.0,0.00041095,2]
[400058718,1767057038754,-1000.0,0.00041095,2]
[400058721,1767057038765,-1000.0,0.00041095,2]
[400058723,1767057038776,-513.47065361,0.00041095,120]
[400058725,1767057038786,-500.0,0.00041095,2]
[400058727,1767057038796,-500.0,0.00041095,2]
[400058729,1767057038807,-500.0,0.00041095,2]
[400058731,1767057038817,-500.0,0.00041095,120]
[400058734,1767057038827,-500.0,0.00041095,120]
[400058736,1767057038843,-500.0,0.00041095,120]
[400058739,1767057038857,-289.92587861,0.00041095,120]
[400058741,1767057038868,-345.59812047,0.00041095,120]
[400058743,1767057038878,-378.97922974,0.00041095,120]
[400058745,1767057038889,-255.14830584,0.00041095,120]
[400058748,1767057038899,-500.0,0.00041095,120]
[400058750,1767057038910,-221.18317844,0.00041095,120]
[400058752,1767057038922,-647.9546244,0.00041095,120]
[400058754,1767057038932,-529.71652976,0.00041095,120]
[400058756,1767057038943,-381.07101979,0.00041095,120]
[400058758,1767057038954,-151.0,0.00041095,120]
[400058761,1767057038966,-500.0,0.00041095,30]
[400058763,1767057038977,-500.0,0.00041095,30]
[400058765,1767057038988,-367.81648057,0.00041095,120]
[400058767,1767057038999,-407.99704213,0.00041095,120]
[400058769,1767057039010,-500.0,0.00041095,30]
[400058771,1767057039021,-500.0,0.00041095,30]
[400058773,1767057039031,-500.0,0.00041095,30]
[400058776,1767057039045,-500.0,0.00041095,30]
[400058778,1767057039056,-500.0,0.00041095,30]
[400058780,1767057039067,-500.0,0.00041095,30]
[400058782,1767057039078,-244.16026519,0.00041095,120]
[400058785,1767057039089,-282.13857552,0.00041095,120]
[400058787,1767057039101,-600.49901707,0.00041095,30]
[400058789,1767057039113,-271.4212119,0.00041095,120]
[400058791,1767057039127,-332.80641846,0.00041095,120]
[400058794,1767057039140,-500.0,0.00041095,120]
[400058796,1767057039151,-500.0,0.00041095,120]
[400058798,1767057039163,-272.95059822,0.00041095,120]
[400058800,1767057039175,-313.38233514,0.00041095,120]
[400058802,1767057039186,-287.59034492,0.00041095,120]
[400058804,1767057039196,-241.16818442,0.00041095,120]
[400058806,1767057039209,-222.32124096,0.00041095,120]
[400058808,1767057039220,-249.53043052,0.00041095,120]
[400058810,1767057039231,-258.26236648,0.00041095,120]
[400058812,1767057039242,-348.16490793,0.00041095,120]
[400058814,1767057039253,-273.85136053,0.00041095,120]
[400058817,1767057039264,-270.33077534,0.00041095,120]
[400058819,1767057039274,-304.46916368,0.00041095,120]
[400058821,1767057039284,-290.05497513,0.00041095,120]
[400058823,1767057039295,-323.92426633,0.00041095,120]
[400058825,1767057039306,-359.25304866,0.00041095,120]
[400058827,1767057039316,-286.03470533,0.00041095,120]